[Event "Silver Lake Festival 2022"]
[Site "Veliko Gradiste"]
[Date "2022.06.20"]
[Round "3.1"]
[White "Damljanovic, Branko"]
[Black "Zanan, Evgeny"]
[Result "0-1"]
[ECO "C88"]
[WhiteElo "2469"]
[BlackElo "2534"]
[Annotator "TA"]
[PlyCount "98"]
[EventDate "2022.06.16"]
[EventType "swiss"]
[EventCountry "SRB"]
[SourceTitle "playchess.com"]
[Source "ChessBase"]
[SourceQuality "1"]
[TimeControl "5400+30"]

{[%evp 22,98,19,15,35,25,57,52,86,87,84,57,57,62,51,57,56,52,70,57,67,42,52,57,54,0,49,45,46,0,0,0,18,0,0,0,0,0,0,-11,-11,-13,-9,-29,-8,-47,-26,-26,0,0,0,0,0,-82,-82,-82,-82,-76,-80,-100,-76,-88,-39,-59,-28,-54,-41,-86,-84,-85,-84,-88,-83,-413,-389,-643,-605,-599,-552]} 1. e4 {[%emt 0:00:10]} e5 {[%emt 0:12:47]} 2. Nf3 {[%emt 0:00:11]} Nc6 {[%emt 0:00:27]} 3. Bb5 {[%emt 0:00:15][%cal Bf1b5,Bb5a4,Ba4b3,Bb3a2][%mdl 32]} a6 {[%emt 0:00:06]} 4. Ba4 {[%emt 0:00:05]} Nf6 {[%emt 0:00:05]} 5. O-O {[%emt 0:00:08]} Be7 {[%emt 0:00:02]} 6. Re1 {[%emt 0:00:08]} b5 {[%emt 0:00:06]} 7. Bb3 {[%emt 0:00:04]} O-O {[%emt 0:00:06]} 8. h3 {[%emt 0:00:05]} Bb7 {[%emt 0:00:03]} 9. Nc3 {[%emt 0:06:17]} d6 {[%emt 0:05:06]} 10. a3 {[%emt 0:00:31]} Na5 {[%emt 0:04:59]} 11. Ba2 {[%emt 0:02:51]} c5 {[%emt 0:00:11]} 12. d3 {[%emt 0:00:28]} Rc8 {[%emt 0:05:04] C88: Closed Ruy Lopez: Anti-Marshall Systems.} 13. Ne2 {[%emt 0:07:42] [#]} Ne8 $146 {[%emt 0:17:15]} ({Predecessor:} 13... c4 14. Ng3 g6 15. Bd2 Nd7 16. b4 cxb3 17. cxb3 Nc6 18. b4 Bf6 19. Ne2 Nb6 20. Rc1 {1-0 (46) Bratanov,Z (2393)-Bojkov,D (2398) Plovdiv 2003}) 14. Ng3 {[%emt 0:02:20]} g6 {[%emt 0:00:40] White is slightly better.} 15. Bh6 {[%emt 0:00:38]} Ng7 {[%emt 0:00:04]} 16. Qd2 {[%emt 0:00:38]} c4 {[%emt 0:04:33]} 17. b4 {[%emt 0:07:11]} cxb3 $1 {[%emt 0:00:41]} 18. cxb3 {[%emt 0:00:02]} Nc6 {[%emt 0:05:38][%cal Ob5b4]} 19. b4 {[%emt 0:00:22]} Bf6 {[%emt 0:00:26]} 20. Ne2 {[%emt 0:06:12]} Re8 {[%emt 0:08:06]} 21. Ng5 {[%emt 0:14:52]} Ne6 {[%emt 0:05:36]} 22. Nxe6 {[%emt 0:01:04]} fxe6 {[%emt 0:00:05]} 23. Rad1 {[%emt 0:03:38]} ({White should play} 23. Rac1 $14) 23... Kh8 {[%emt 0:14:42]} (23... g5 $11) 24. Be3 $14 {[%emt 0:04:45]} Nd4 {[%emt 0:01:17]} 25. Bxd4 {[%emt 0:02:34]} (25. Rc1 $14) 25... exd4 $11 {[%emt 0:00:05]} 26. Rc1 {[%emt 0:04:04]} Qe7 {[%emt 0:04:21]} 27. Rxc8 {[%emt 0:00:50]} Rxc8 {[%emt 0:00:07]} 28. Rc1 {[%emt 0:00:06]} Rf8 {[%emt 0:01:41]} 29. Rf1 {[%emt 0:03:56]} e5 {[%emt 0:01:15]} 30. Bb3 {[%emt 0:00:26]} Bg5 {[%emt 0:00:57]} 31. Qa2 {[%emt 0:00:42]} Qf6 {[%emt 0:01:32]} 32. Kh1 {[%emt 0:15:13]} Bc8 {[%emt 0:01:03]} 33. Ng1 {[%emt 0:02:01]} Bh4 {[%emt 0:00:41]} (33... Be3 $5) 34. Qe2 {[%emt 0:07:43]} Qf4 {[%emt 0:04:31]} (34... Bxf2 $2 35. g3 $18) (34... Bg3 $5) 35. Nf3 {[%emt 0:04:16]} Be7 {[%emt 0:02:32][%cal Oc8h3]} 36. Nh2 $1 {[%emt 0:00:38]} Bg5 {[%emt 0:00:30][%cal Be7g5,Bg5d2,Bd2c3][%mdl 32]} 37. g3 {[%emt 0:04:57]} (37. Qc2 $1 $11 {remains equal.}) 37... Qd2 $17 {[%emt 0:00:30]} 38. Qxd2 {[%emt 0:00:03]} Bxd2 {[%emt 0:00:03]} 39. Kg2 {[%emt 0:00:07]} Bd7 {[%emt 0:00:48]} 40. Rd1 {[%emt 0:00:43]} Bc3 {[%emt 0:00:16] Black is more active.} 41. Rb1 {[%emt 0:00:07]} a5 {[%emt 0:01:21]} (41... Kg7 $17) 42. bxa5 $15 {[%emt 0:00:19]} Ra8 {[%emt 0:00:27]} (42... Bxa5 $5 {[%cal Rf8c8]} 43. Bd5 Rc8 $15) 43. f4 {[%emt 0:01:12]} exf4 {[%emt 0:00:29]} ({But not} 43... Rxa5 44. fxe5 dxe5 45. Rf1 $16 (45. Nf3 Rxa3 46. Nxe5 Be8 $11)) 44. gxf4 {[%emt 0:00:02]} Rxa5 {[%emt 0:00:04]} 45. Nf3 {[%emt 0:00:43]} Rxa3 {[%emt 0:00:20] aiming for ...b4.} 46. Ng5 {[%emt 0:01:29]} b4 {[%emt 0:00:49][%cal Oa3b3] Strongly threatening ...Rxb3!} 47. Nf7+ $2 {[%emt 0:00:29][%mdl 8192]} (47. Bc4 $17 {nothing else works.}) 47... Kg7 $19 {[%emt 0:00:03][%cal Oa3b3] White must now prevent ...Rxb3!} 48. Nxd6 $2 {[%emt 0:00:03] [#]} (48. Bc4 Ba4 49. Nxd6) 48... Rxb3 $1 {[%emt 0:00:37][%mdl 512]} 49. Rxb3 {[%emt 0:00:02] [#]} Ba4 $1 {[%emt 0:00:12] Weighted Error Value: White=0.33/Black=0.09 (flawless)} 0-1

[Event "Silver Lake Festival 2022"]
[Site "Veliko Gradiste"]
[Date "2022.06.20"]
[Round "3.2"]
[White "Strikovic, Aleksa"]
[Black "Radovanovic, Nikola"]
[Result "1-0"]
[ECO "B07"]
[WhiteElo "2502"]
[BlackElo "2423"]
[Annotator "TA"]
[PlyCount "86"]
[EventDate "2022.06.16"]
[EventType "swiss"]
[EventCountry "SRB"]
[SourceTitle "playchess.com"]
[Source "ChessBase"]
[SourceQuality "1"]
[TimeControl "5400+30"]

{[%evp 13,86,29,46,32,42,27,35,15,18,-12,0,-32,23,21,28,20,35,25,39,26,21,29,23,29,31,29,85,96,83,79,88,84,80,18,16,20,25,22,22,27,24,5,22,0,0,0,8,0,0,0,0,0,0,0,0,0,0,0,0,0,0,0,0,0,13,0,6,0,0,0,0,0,0,0,0]} 1. e4 {[%emt 0:09:53]} d6 {[%emt 0:00:11]} 2. d4 {[%emt 0:00:09]} Nf6 {[%emt 0:00:07]} 3. Nc3 {[%emt 0:00:12]} e5 {[%emt 0:00:07]} 4. dxe5 {[%emt 0:01:22]} dxe5 {[%emt 0:00:06]} 5. Qxd8+ {[%emt 0:00:03]} Kxd8 {[%emt 0:00:07]} 6. Bc4 {[%emt 0:00:09]} Ke8 {[%emt 0:00:12] is currently scoring better than 6...Be6.} 7. Nf3 {[%emt 0:00:32]} Bd6 {[%emt 0:00:09]} 8. h3 {[%emt 0:02:31] B07: Pirc Defence: Miscellaneous Systems.} a6 {[%emt 0:07:13]} 9. a4 {[%emt 0:01:22]} b6 {[%emt 0:00:05] [#]} 10. Ng5 $146 {[%emt 0:02:46] White is slightly better.} ({Predecessor:} 10. Be3 Bb7 11. Nd2 Nbd7 12. g4 Bb4 13. f3 Bxc3 14. bxc3 Ke7 15. Ke2 Ne8 16. Rhb1 {1-0 (64) Ciorgovean,I (2276)-Gallego Alcaraz,A (2523) Bucharest 2022}) 10... Rf8 {[%emt 0:00:12]} 11. Nd5 {[%emt 0:00:06]} Nbd7 {[%emt 0:00:49]} 12. f4 {[%emt 0:25:53]} exf4 {[%emt 0:43:09]} (12... Nh5 $15) 13. Bxf4 $11 {[%emt 0:03:11]} Bxf4 {[%emt 0:02:33]} 14. Nxf4 {[%emt 0:00:07][%cal Oe4e5]} Ne5 {[%emt 0:01:27]} 15. Bb3 $36 {[%emt 0:01:25][%mdl 2048] White is pushing.} Bb7 {[%emt 0:05:08]} 16. O-O-O {[%emt 0:13:32]} Rd8 {[%emt 0:01:04]} 17. Nd5 {[%emt 0:01:09]} Bxd5 {[%emt 0:00:39]} 18. exd5 {[%emt 0:00:13] And now Rhe1 would win.} Kd7 {[%emt 0:00:12]} 19. Rhe1 {[%emt 0:01:56]} Rde8 {[%emt 0:00:48] [#]} (19... Kd6 $11 {keeps the balance.}) 20. Ne6 $1 $16 {[%emt 0:02:09]} fxe6 {[%emt 0:04:30]} 21. dxe6+ {[%emt 0:00:25]} Ke7 {[%emt 0:00:01] ...Ng6 is the strong threat.} 22. Rxe5 {[%emt 0:00:07]} Rd8 {[%emt 0:00:04]} 23. Bc4 {[%emt 0:07:33] White is more active.} (23. Rf1 $16) 23... Rxd1+ $11 {[%emt 0:12:51]} 24. Kxd1 {[%emt 0:00:14][%mdl 4096] Endgame KRB-KRN} a5 {[%emt 0:00:02]} 25. c3 {[%emt 0:00:24]} Ne8 {[%emt 0:00:14]} 26. Ke2 {[%emt 0:02:32]} Nd6 {[%emt 0:00:22]} 27. Bb3 {[%emt 0:01:54]} Rf6 {[%emt 0:04:40] The position is equal.} 28. g4 {[%emt 0:05:39]} Rf4 {[%emt 0:06:01]} 29. Bc2 {[%emt 0:09:49]} g6 {[%emt 0:01:29]} 30. Bb3 {[%emt 0:04:18]} c6 {[%emt 0:07:09]} 31. Re3 {[%emt 0:01:21]} Ne4 {[%emt 0:00:09]} 32. Bc2 {[%emt 0:02:03]} Rf2+ {[%emt 0:00:12]} 33. Kd1 {[%emt 0:00:02]} Nd6 {[%emt 0:00:57]} 34. b3 {[%emt 0:00:25]} Rh2 {[%emt 0:01:34]} 35. Bd3 {[%emt 0:01:17]} Ne8 {[%emt 0:02:05]} 36. Be4 {[%emt 0:00:13]} c5 {[%emt 0:00:59]} 37. Bd5 {[%emt 0:00:07]} Nd6 {[%emt 0:00:02]} 38. c4 {[%emt 0:00:38]} g5 {[%emt 0:01:05]} 39. Ke1 {[%emt 0:00:13]} Ne8 {[%emt 0:00:14]} 40. Kf1 {[%emt 0:00:49] [#] Strongly threatening Bg2.} Rd2 {[%emt 0:00:07]} 41. Re5 {[%emt 0:00:27]} h6 {[%emt 0:00:14]} 42. h4 {[%emt 0:00:44]} Nf6 {[%emt 0:01:08]} 43. hxg5 {[%emt 0:01:11]} Nxg4 {[%emt 0:00:02][%mdl 32768] Weighted Error Value: White=0.10 (very precise) /Black=0.05 (flawless) . Loss on time!?} 1-0

[Event "Silver Lake Festival 2022"]
[Site "Veliko Gradiste"]
[Date "2022.06.20"]
[Round "3.3"]
[White "Mohammad Nubairshah Shaikh"]
[Black "Stremavicius, Titas"]
[Result "1/2-1/2"]
[ECO "D35"]
[WhiteElo "2443"]
[BlackElo "2508"]
[Annotator "TA"]
[PlyCount "119"]
[EventDate "2022.06.16"]
[EventType "swiss"]
[EventCountry "SRB"]
[SourceTitle "playchess.com"]
[Source "ChessBase"]
[SourceQuality "1"]
[TimeControl "5400+30"]

{[%evp 15,119,15,20,16,26,26,26,26,29,19,25,21,42,9,4,8,16,14,9,10,35,28,28,29,51,51,47,44,47,28,33,33,47,47,33,40,41,32,50,35,39,25,46,54,45,26,27,32,23,31,19,29,100,100,94,91,95,101,104,102,102,116,116,58,58,52,57,61,63,0,0,0,0,0,0,0,19,0,0,0,0,0,0,0,0,0,0,0,34,0,0,0,0,0,0,0,0,0,0,0,0,0,0,0,0,0]} 1. d4 {[%emt 0:03:34]} d5 {[%emt 0:00:10]} 2. c4 {[%emt 0:00:09]} e6 {[%emt 0:00:06]} 3. Nc3 {[%emt 0:00:05]} Nf6 {[%emt 0:00:07]} 4. cxd5 {[%emt 0:00:09]} exd5 {[%emt 0:00:06]} 5. Bg5 {[%emt 0:00:04]} Nbd7 {[%emt 0:00:10]} 6. e3 {[%emt 0:00:13]} Be7 {[%emt 0:00:16]} 7. Bd3 {[%emt 0:00:41]} c6 {[%emt 0:00:07]} 8. Nge2 {[%emt 0:00:01]} h6 {[%emt 0:00:16] 8...Nf8 gains popularity.} 9. Bh4 {[%emt 0:00:03] D35: Queen's Gambit Declined: Exchange Variation.} Nh5 {[%emt 0:00:09]} 10. Bxe7 {[%emt 0:00:37]} Qxe7 {[%emt 0:00:02]} 11. Qd2 {[%emt 0:00:25] White has an edge.} Nb6 {[%emt 0:00:31]} 12. O-O {[%emt 0:00:29]} O-O {[%emt 0:00:08]} 13. f3 {[%emt 0:00:15]} Qg5 {[%emt 0:04:47] [#]} 14. g4 $146 {[%emt 0:00:55]} ({Predecessor:} 14. Rae1 Bd7 15. g4 Rae8 16. Kf2 Nf6 17. Ng3 Qh4 18. Kg2 g6 19. h3 h5 20. Qf2 hxg4 21. hxg4 {½-½ (33) Dragun,K (2561)-Stremavicius,T (2517) Charlotte 2020}) 14... Re8 {[%emt 0:02:30]} 15. Rad1 {[%emt 0:00:04]} Nf6 {[%emt 0:06:44]} ({Much less strong is} 15... Rxe3 16. Kf2 (16. h4 Qe7 $14) 16... Rxd3 17. Qxg5 (17. Qxd3 Nc4 $14) 17... hxg5 18. Rxd3 $16) 16. Nf4 {[%emt 0:15:47]} h5 {[%emt 0:01:12]} 17. h3 {[%emt 0:00:36][%cal Bh2h3,Bh3g4,Bg4g5][%mdl 32]} Qh4 {[%emt 0:06:00]} (17... hxg4 {keeps more tension.} 18. hxg4 Nxg4 19. fxg4 Bxg4 20. Qg2 Rxe3 21. Rd2 Qh4) 18. Qe1 {[%emt 0:10:44]} Qxe1 {[%emt 0:01:19]} 19. Rfxe1 {[%emt 0:01:23]} hxg4 {[%emt 0:00:30]} 20. hxg4 {[%emt 0:00:23]} g6 {[%emt 0:01:52]} 21. Kf2 {[%emt 0:04:54]} Bd7 {[%emt 0:03:33]} 22. g5 {[%emt 0:09:00]} (22. b3 {is interesting.} Kg7 23. Rh1 Rh8 24. Bb1) 22... Nh7 {[%emt 0:00:31]} 23. Rg1 {[%emt 0:00:18]} Nf8 {[%emt 0:05:34]} 24. b4 {[%emt 0:06:36][%cal Bb2b4,Bb4b5][%mdl 32]} (24. a4 {is more complex.} Kg7 25. Rh1 Ne6 26. Nxe6+ Bxe6 27. a5) 24... Ne6 {[%emt 0:01:57]} 25. Nxe6 {[%emt 0:00:53]} Bxe6 {[%emt 0:03:50]} 26. a4 {[%emt 0:00:13]} Nc8 {[%emt 0:02:11]} 27. b5 {[%emt 0:03:03]} Nd6 {[%emt 0:00:09]} 28. e4 {[%emt 0:04:16]} Rac8 {[%emt 0:09:07]} 29. Rc1 {[%emt 0:00:56]} Kg7 {[%emt 0:04:50]} 30. bxc6 {[%emt 0:15:32]} bxc6 {[%emt 0:04:30]} 31. exd5 {[%emt 0:01:13]} Bxd5 {[%emt 0:27:48]} 32. Nxd5 {[%emt 0:01:25]} cxd5 {[%emt 0:00:02]} 33. Rc5 {[%emt 0:00:03]} Nc4 {[%emt 0:02:28]} (33... Rxc5 $1 $11 {keeps the balance.} 34. dxc5 Nb7) 34. Bxc4 $16 {[%emt 0:06:31]} dxc4 {[%emt 0:00:02][%mdl 4096] Endgame KRR-KRR} 35. Rc1 {[%emt 0:00:02]} Rb8 {[%emt 0:01:42]} 36. R1xc4 {[%emt 0:00:06]} Rb2+ {[%emt 0:00:13]} 37. Rc2 {[%emt 0:01:43]} Rb4 {[%emt 0:00:45] [#]} 38. R5c4 $1 {[%emt 0:00:33]} Rb3 {[%emt 0:00:02] [#]} 39. Re2 {[%emt 0:03:00] Prevents Ree3.} (39. R2c3 $1 $16 {[%cal Rc3b3]} Rb2+ 40. Kg3) 39... Rh8 $1 $14 {[%emt 0:00:05] ...Rh2+ is the strong threat.} 40. Kg2 {[%emt 0:03:32] Against Rh2+} Rd3 {[%emt 0:00:06]} 41. Re4 {[%emt 0:02:40]} Rd8 $1 {[%emt 0:03:32]} 42. Rc7 {[%emt 0:00:16]} (42. Kf2 $14) 42... Rd5 $1 $11 {[%emt 0:01:07]} 43. Rf4 {[%emt 0:05:35]} Rxg5+ {[%emt 0:00:11]} 44. Kf2 {[%emt 0:00:03]} Rf5 {[%emt 0:00:08]} 45. Rxf5 {[%emt 0:00:03]} gxf5 {[%emt 0:00:05] KR-KR} 46. Rd7 {[%emt 0:00:54]} a5 {[%emt 0:05:34]} 47. Rd5 {[%emt 0:00:02][%csl LRa5,LRf5]} f4 {[%emt 0:00:04]} 48. Ke2 {[%emt 0:00:20]} Re3+ {[%emt 0:00:03]} 49. Kf2 {[%emt 0:00:03]} Rd3 {[%emt 0:00:04]} 50. Kg2 {[%emt 0:03:12]} Kg6 {[%emt 0:01:48]} 51. Rxa5 {[%emt 0:00:02]} Rxd4 {[%emt 0:00:07]} 52. Kh3 {[%emt 0:00:05]} f5 {[%emt 0:00:31] The position is equal.} 53. Kh4 {[%emt 0:00:24] Hoping for Ra6+.} Rd3 {[%emt 0:00:05]} 54. Ra6+ {[%emt 0:00:03]} Kf7 {[%emt 0:00:05]} 55. Kg5 {[%emt 0:00:11][%csl LRf4,LRf5]} Rxf3 {[%emt 0:00:05]} 56. Rf6+ {[%emt 0:00:08]} Ke7 {[%emt 0:00:24]} 57. Rxf5 {[%emt 0:00:04]} Kd6 {[%emt 0:00:19]} 58. Rxf4 {[%emt 0:00:04]} Rxf4 {[%emt 0:00:05]} 59. Kxf4 {[%emt 0:00:03]} Kc5 {[%emt 0:00:05]} 60. Ke4 {[%emt 0:05:52] Weighted Error Value: White=0.06 (flawless) /Black=0.06 (flawless)} 1/2-1/2

[Event "Silver Lake Festival 2022"]
[Site "Veliko Gradiste"]
[Date "2022.06.20"]
[Round "3.4"]
[White "Ramoutar, Alan-Safar"]
[Black "Markovic, Zoran S"]
[Result "1/2-1/2"]
[ECO "B23"]
[WhiteElo "2477"]
[BlackElo "2313"]
[Annotator "TA"]
[PlyCount "135"]
[EventDate "2022.06.16"]
[EventType "swiss"]
[EventCountry "SRB"]
[SourceTitle "playchess.com"]
[Source "ChessBase"]
[SourceQuality "1"]
[TimeControl "5400+30"]

{[%evp 10,135,10,15,27,22,18,11,15,11,23,22,25,18,31,21,12,25,12,22,24,26,29,58,43,45,39,36,413,35,43,45,101,104,98,104,120,103,102,107,107,102,106,101,110,110,110,110,110,105,110,75,125,117,118,124,125,125,125,125,125,125,125,117,117,117,117,117,117,117,117,117,125,43,150,150,150,150,150,150,150,150,150,8,8,8,8,8,8,8,8,8,8,8,8,8,8,8,8,0,8,8,8,8,8,8,8,8,8,0,0,0,0,0,0,0,0,0,0,0,0,0,0,0,0,0,0,0]} 1. e4 {[%emt 0:00:00]} c5 {[%emt 0:00:00]} 2. Nc3 {[%emt 0:00:00]} Nc6 {[%emt 0:00:08]} 3. Bb5 {[%emt 0:00:00]} Nd4 {[%emt 0:00:29]} 4. Nf3 {[%emt 0:00:13]} Nxb5 {[%emt 0:00:17]} 5. Nxb5 {[%emt 0:00:08]} d6 {[%emt 0:00:28]} 6. d4 {[%emt 0:00:40]} Nf6 $1 {[%emt 0:00:29] The main line 6...Nf6 scores better than 6...a6. B23: Closed Sicilian: Lines without g3.} 7. Qd3 {[%emt 0:01:02]} a6 {[%emt 0:00:41]} 8. Nc3 {[%emt 0:00:09] White wants to play dxc5.} cxd4 {[%emt 0:00:41]} 9. Nxd4 {[%emt 0:00:14]} e5 {[%emt 0:01:24]} 10. Nf5 {[%emt 0:00:30]} Bxf5 {[%emt 0:00:40]} 11. exf5 {[%emt 0:00:09]} h6 {[%emt 0:00:28] Against Bg5} 12. Bd2 {[%emt 0:01:46]} d5 {[%emt 0:01:00][%cal Bd6d5,Bd5d4][%mdl 32]} 13. O-O-O {[%emt 0:00:27] [#]} d4 $146 {[%emt 0:01:01]} ({Predecessor:} 13... Qd6 14. Kb1 Be7 15. h3 b5 16. f4 e4 17. Qd4 O-O 18. Be3 Rfd8 19. g4 b4 {½-½ (34) Kavc,A (2206)-Zavrazhnov,A (2219) ICCF email 2017}) 14. Ne4 {[%emt 0:01:03]} Qd5 {[%emt 0:03:31][%csl LRa2,LRe4]} 15. Rhe1 {[%emt 0:03:02] Black should prevent c4.} Qxa2 {[%emt 0:14:48][%cal Ra2a1] [#]} 16. Nc3 $1 {[%emt 0:00:08] Active counter play!} dxc3 {[%emt 0:00:15][%csl Ga2][%cal Rc3b2]} 17. Rxe5+ {[%emt 0:00:52]} Be7 {[%emt 0:00:06][%csl Ga2][%cal Rc3b2]} 18. Bxc3 {[%emt 0:01:30][%cal Oe5e7] Hoping for Rxe7+! Chess con chili.} Qa1+ {[%emt 0:03:37]} 19. Kd2 {[%emt 0:00:09]} Qa4 {[%emt 0:00:22]} 20. Ke1 $36 {[%emt 0:12:35][%cal Oe5e7][%mdl 2048] aiming for Rxe7+! White fights for an advantage.} O-O {[%emt 0:06:45]} 21. Rxe7 $16 {[%emt 0:00:44]} Qc6 {[%emt 0:07:56]} 22. Kf1 {[%emt 0:24:06]} Rfe8 {[%emt 0:22:56]} 23. Bxf6 {[%emt 0:18:55]} Qxf6 {[%emt 0:05:06]} 24. Rxb7 {[%emt 0:00:52]} Red8 {[%emt 0:02:51]} 25. Qf3 {[%emt 0:03:10]} Rxd1+ {[%emt 0:01:32]} 26. Qxd1 {[%emt 0:00:02][%mdl 4096] Endgame KQR-KQR} Rd8 {[%emt 0:06:05] Prevents Qd5.} 27. Qf3 {[%emt 0:06:41]} Qg5 {[%emt 0:01:59] ( -> ...Qc1+)} 28. g3 {[%emt 0:05:48] Strongly threatening Qe4.} Qc1+ {[%emt 0:00:42]} 29. Kg2 {[%emt 0:00:02] Qb3 is the strong threat.} Qxc2 {[%emt 0:01:20]} 30. f6 {[%emt 0:00:39]} Qd1 {[%emt 0:06:53]} (30... g5 $142) 31. fxg7 {[%emt 0:05:19]} Qxf3+ {[%emt 0:00:05]} 32. Kxf3 {[%emt 0:00:03] KR-KR} a5 {[%emt 0:01:39]} 33. Ke4 {[%emt 0:05:30]} Kxg7 {[%emt 0:00:27]} 34. Rb5 {[%emt 0:01:25]} a4 {[%emt 0:01:21]} 35. h4 {[%emt 0:01:26]} Ra8 {[%emt 0:00:35]} 36. Kf5 {[%emt 0:01:39]} a3 {[%emt 0:00:18]} 37. bxa3 {[%emt 0:00:06]} Rxa3 {[%emt 0:00:03]} 38. Kg4 {[%emt 0:00:27] Inhibits Rf3.} Ra4+ {[%emt 0:00:26]} 39. Kh5 {[%emt 0:00:31]} Ra3 {[%emt 0:01:34]} 40. Rf5 {[%emt 0:00:18]} Rb3 {[%emt 0:00:37]} 41. g4 {[%emt 0:00:33]} (41. Kg4 $16) 41... f6 {[%emt 0:03:09]} (41... Rb2 $14) 42. Ra5 {[%emt 0:00:52] Threatens to win with Ra7+.} Rb7 {[%emt 0:00:09] Prevents Ra7.} 43. f4 {[%emt 0:01:24][%cal Bf2f4,Bf4f5][%mdl 32]} Rc7 {[%emt 0:00:50]} 44. Ra6 {[%emt 0:00:35]} Rb7 {[%emt 0:00:52]} 45. f5 {[%emt 0:00:58]} Rc7 {[%emt 0:00:35]} 46. g5 {[%emt 0:01:53]} (46. Re6 $16) 46... hxg5 $11 {[%emt 0:00:07] The position is equal.} 47. hxg5 {[%emt 0:00:09]} fxg5 {[%emt 0:00:33]} 48. Kxg5 {[%emt 0:00:29]} Rb7 {[%emt 0:00:58]} 49. Rg6+ {[%emt 0:02:13]} Kf7 {[%emt 0:03:50]} 50. Rh6 {[%emt 0:00:26] White wants to mate with Rh7+.} Rb1 {[%emt 0:02:08]} 51. Rh7+ {[%emt 0:00:08]} Kg8 $1 {[%emt 0:00:09]} 52. Ra7 {[%emt 0:00:08]} Rb6 {[%emt 0:00:11]} 53. Re7 {[%emt 0:00:25]} Kf8 {[%emt 0:00:16]} 54. Ra7 {[%emt 0:01:08]} Rc6 {[%emt 0:00:02]} 55. Ra8+ {[%emt 0:01:21]} Kf7 {[%emt 0:00:10]} 56. Ra1 {[%emt 0:00:37]} Kg7 {[%emt 0:00:26]} 57. Rb1 {[%emt 0:00:25]} Ra6 {[%emt 0:00:07]} 58. Rb7+ {[%emt 0:00:22]} Kf8 {[%emt 0:00:13]} 59. f6 {[%emt 0:01:00]} Ra1 {[%emt 0:00:28]} 60. Rb8+ {[%emt 0:00:05]} Kf7 {[%emt 0:00:10]} 61. Rb7+ {[%emt 0:00:02]} Kf8 {[%emt 0:00:19]} 62. Rb5 {[%emt 0:02:18]} Kf7 {[%emt 0:00:41]} 63. Rb7+ {[%emt 0:00:47]} Kf8 {[%emt 0:00:07]} 64. Kg6 {[%emt 0:00:06][%cal Rb7b8]} Rg1+ {[%emt 0:00:13]} 65. Kf5 {[%emt 0:00:21]} Rf1+ {[%emt 0:00:18]} 66. Ke6 {[%emt 0:00:12][%cal Rb7b8]} Re1+ {[%emt 0:00:09]} 67. Kd7 {[%emt 0:00:49]} Kf7 {[%emt 0:00:54]} 68. Rb6 {[%emt 0:00:10] Weighted Error Value: White=0.09 (flawless) /Black=0.08 (flawless)} 1/2-1/2